Cogmind - Beta 15 @@@ ROGUE MODE // 2025.09.01 @ 18:56:35 Player: Hartman Result: Smashed by cave-in Performance ------------- Evolutions (0) 0 Regions Visited (2) 400 Robots Destroyed (10) 50 Value Destroyed (199) 199 Prototype IDs (0) 0 Alien Tech Used (0) 0 Bonus (0) 0 TOTAL SCORE: 649 Bonus ------- None Cogmind --------- Core Integrity 0/250 Matter 295/300 Energy 106/125 System Corruption 2% Temperature Cool (11) Movement Walking (190) Ox1 Location -10/Subcaves Parts ------- > --- POWER (1) -------- Light Ion Engine > --- PROPULSION (2) --- Aluminum Leg > --- UTILITY (2) ------ Sensor Array Makeshift Light Armor Plating > --- WEAPON (2) ------- Subdweller Beam Cannon Hammer > --- INVENTORY (5) ---- Wheel Wheel Subdweller Optics Battle Cannon Peak State ------------ > --- POWER ------------ Light Nuclear Core > --- PROPULSION ------- Aluminum Leg Aluminum Leg > --- UTILITY ---------- Small Storage Unit Sensor Array > --- WEAPON ----------- Makeshift Shrapnel Gun Hammer > --- INVENTORY -------- Light Ion Engine Wheel Wheel Subdweller Optics Sensor Array Scrap Shield Medium Laser [Rating: 13] Favorites ----------- Power Light Nuclear Core Engine Ion Engine Power Core Light Nuclear Core Propulsion Aluminum Leg Leg Aluminum Leg Utility Sensor Array Device Sensor Array Storage Small Storage Unit Protection Makeshift Light Armor Plating Weapon Hammer Energy Gun Medium Laser Energy Cannon Subdweller Beam Cannon Ballistic Gun Barrage Gun Ballistic Cannon Battle Cannon Launcher Grenade Launcher Impact Weapon Hammer Build | -11 -10 -10 ------- Run | Yrd Mat Sub Slots Evolved . | . . . Power . | . . . Propulsion . | . . . Utility . | . . . Weapon . | . . . Parts Attached 18 | 7 4 7 Power 3 | 2 1 . Engine 2 | 2 . . Core 1 | . 1 . Reactor . | . . . Propulsion 2 | 2 . . Treads . | . . . Leg 2 | 2 . . Wheel . | . . . Hover . | . . . Flight . | . . . Utility 4 | 1 1 2 Device 2 | . 1 1 Storage 1 | 1 . . Processor . | . . . Hackware . | . . . Protection 1 | . . 1 Artifact . | . . . Weapon 9 | 2 2 5 Energy Gun 2 | 2 . . Energy Cannon 2 | . . 2 Ballistic Gun 2 | . . 2 Ballistic Cannon 1 | . . 1 Launcher 1 | . 1 . Special Weapon . | . . . Impact Weapon 1 | . 1 . Slashing Weapon . | . . . Piercing Weapon . | . . . Special Melee Weapon . | . . . Unidentified Prototypes . | . . . Parts Lost 4 | . 2 2 Power 2 | . 1 1 Propulsion 1 | . . 1 Utility . | . . . Weapon 1 | . 1 . Highest Loss Streak 2 | . 1 2 To Critical Strikes . | . . . Average Backups 6 | 2 7 6 Power 1 | . 1 1 Propulsion 2 | 1 4 2 Utility 1 | . . 1 Weapon 1 | . 1 1 Tool/Special . | . . . Unused Backups 9 | . 1 8 Power 1 | . . 1 Propulsion 5 | . 1 4 Utility 2 | . . 2 Weapon 1 | . . 1 Tool/Special . | . . . Average Slot Usage (%) 98 | . 94 99 Engine 2 | . 8 . Core 11 | . 4 13 Leg 28 | . 28 28 Device 12 | . 10 14 Storage 9 | . 14 7 Protection 4 | . . 6 Energy Gun 7 | . 18 3 Energy Cannon 2 | . . 3 Ballistic Gun 3 | . . 4 Ballistic Cannon 1 | . . 2 Impact Weapon 12 | . 7 14 Peak Build Rating 13 | 6 9 13 Average Rating 10 | 4 7 11 On Entrance 5 | . 6 9 Naked Turns . | . . . Heaviest Build 21 | 14 16 21 Greatest Support 20 | 20 20 20 Greatest Overweight (x) 1 | . . 1 Average Overweight (x) . | . . . Largest Inventory Capacity 8 | 8 8 8 Average Capacity 6 | 7 8 6 Most Carried 8 | 5 8 8 Average Carried 6 | 2 7 6 Final Capacity 8 | 8 8 5 Final Carried 8 | 4 8 4 Class Distribution -------------------- 100% | Mutant Dominant Class ---------------- Mutant | -10/Materials Mutant | -10/Subcaves Resources | -11 -10 -10 ----------- Run | Yrd Mat Sub Matter Collected 493 | 220 140 133 Remotely . | . . . Salvage Created 280 | . 280 . Parts 15 | . 15 . Haulers Intercepted . | . . . Recyclers Shooed . | . . . Parts Field Recycled . | . . . Retrieved Matter . | . . . Parts Self-Destructed 8 | . . 8 Prevented . | . . . Kills | -11 -10 -10 ------- Run | Yrd Mat Sub Combat Hostiles Destroyed 7 | . 7 . Melee 3 | . 3 . Guns 1 | . 1 . AOE 2 | . 2 . Classes Destroyed 5 | . 5 . Worker 1 | . 1 . Recycler 1 | . 1 . Mechanic 1 | . 1 . Swarmer 3 | . 3 . Grunt 4 | . 4 . Best Kill Streak 6 | . 6 . Combat Bots Only 2 | . 2 . Max Kills in Single Turn 2 | . 2 . Gunslinging . | . . . Exploded 2 | . 2 . Melee 1 | . 1 . Uniques/NPCs Destroyed . | . . . Combat | -11 -10 -10 -------- Run | Yrd Mat Sub Hostile Shots Fired 76 | . 70 6 Missed 20 | . 19 1 Hits 56 | . 51 5 Projectile 56 | . 51 5 Damage Taken 855 | . 502 353 Core 262 | . 120 142 Absorbed by Shields . | . . . Core Remaining (%) 100 | 100 . . Volleys Fired 52 | . 10 42 Largest 2 | . 2 1 Hottest 80 | . 80 80 Shots Fired 56 | . 15 41 Gun 15 | . 10 5 Cannon 36 | . . 36 Launcher 5 | . 5 . Special . | . . . Kinetic 11 | . . 11 Thermal 40 | . 10 30 Explosive 5 | . 5 . Electromagnetic . | . . . Robot Hit Streak 4 | . 4 . Robot Miss Streak 3 | . 3 1 Penetration Max . | . . . Secondary Targets . | . . . Shots Hit Robots 21 | . 21 . Core Hits 10 | . 10 . Critical Kills . | . . . Critical Parts Destroyed 1 | . 1 . Critical Strikes 1 | . 1 . Smash 1 | . 1 . Melee Attacks 24 | . 21 3 Impact 24 | . 21 3 Slashing . | . . . Piercing . | . . . Sneak Attacks . | . . . Combat Hostiles . | . . . Follow-up Attacks . | . . . Damage Inflicted 642 | . 642 . Guns 50 | . 50 . Cannons . | . . . Explosions 239 | . 239 . Melee 353 | . 353 . Ramming . | . . . Kinetic . | . . . Thermal 50 | . 50 . Explosive 239 | . 239 . Electromagnetic . | . . . Impact 353 | . 353 . Slashing . | . . . Piercing . | . . . Highest Corruption 2 | . . 2 Average Corruption 2 | . . 2 Corruption Purged . | . . . Corruption Blocked . | . . . Overload Shots . | . . . Overflow Damage 61 | . 61 . Projectiles . | . . . Explosions . | . . . Melee 61 | . 61 . Knockbacks 2 | . 2 . Impact 2 | . 2 . Kinetic . | . . . Secondary . | . . . Self-Inflicted Damage 25 | . 25 . Shots 1 | . 1 . Rammed . | . . . Targets Rammed . | . . . Kicked . | . . . Crushed . | . . . Highest Temperature 118 | . 118 56 Average Temperature 24 | . 44 13 Received Heat Transfer 105 | . 105 . Siege Activations . | . . . Martial Activations . | . . . Shielding Activations . | . . . Robots Disrupted . | . . . Combat Hostiles . | . . . Robots Corrupted 1 | . 1 . Combat Hostiles 1 | . 1 . Parts Fried . | . . . Impact Corruptions 4 | . 4 . Robots Melted . | . . . Combat Hostiles . | . . . Parts Melted . | . . . Heat Transferred 148 | . 148 . Parts Sabotaged . | . . . Parts Stolen . | . . . Parts Stripped . | . . . Power Chain Reactions . | . . . Alert | -11 -10 -10 ------- Run | Yrd Mat Sub Maximum Alert Level . | . . . Low Security (%) 100 | 100 100 . Level 1 . | . . . Level 2 . | . . . Level 3 . | . . . Level 4 . | . . . Level 5 . | . . . High Security . | . . . Max Security . | . . . Peak Influence 146 | . 146 . Initial . | . . . Average 59 | . 71 . Influence Increases 278 | . 278 . Destroy 0b10 Robot/C 140 | . 140 . Destroy 0b10 Robot/NC 15 | . 15 . Destroy Leader 40 | . 40 . Successful Hack 5 | . 5 . Destroy Structure 33 | . 33 . Partial Spotted 15 | . 15 . Lose Combat Pursuer 30 | . 30 . Influence Decreases 278 | . 158 120 Entered New Map 58 | . . 58 Time Decay 200 | . 138 62 Lost Part 20 | . 20 . Squads Dispatched 2 | . 2 . Investigation 1 | . 1 . Extermination . | . . . Reinforcement 1 | . 1 . Assault . | . . . Garrison . | . . . Intercept . | . . . Searches Triggered . | . . . Construction Impeded . | . . . Haulers Reinforced . | . . . Active Scanning Responses . | . . . Cargo Convoy Interrupts . | . . . Stealth | -11 -10 -10 --------- Run | Yrd Mat Sub Distress Signals . | . . . Communications Jammed . | . . . Distress Signals . | . . . Times Spotted 15 | . 10 5 Peak Tracking Total 3 | . 3 3 Tactical Retreats 1 | . 1 . Traps | -11 -10 -10 ------- Run | Yrd Mat Sub Traps Triggered 1 | . 1 . Indirectly . | . . . Trap Hack Attempts . | . . . Triggered . | . . . Disarmed . | . . . Reprogrammed . | . . . Reused . | . . . Traps Extracted . | . . . Installed . | . . . Triggered . | . . . Machines | -11 -10 -10 ---------- Run | Yrd Mat Sub Machines Disabled . | . . . Max in Single Turn . | . . . Machines Repaired . | . . . Machines Dismantled . | . . . Machines Sabotaged . | . . . Overloaded Fab Kills . | . . . Hacking | -11 -10 -10 --------- Run | Yrd Mat Sub Machines Accessed 3 | . 2 1 Terminals 1 | . 1 . Fabricators . | . . . Repair Stations 1 | . 1 . Recycling Units . | . . . Scanalyzers . | . . . Garrison Access . | . . . Total Hacks 10 | . 6 4 Successful 8 | . 4 4 Failed 2 | . 2 . Catastrophic . | . . . Database Lockouts . | . . . Manual . | . . . Terminals 4 | . 4 . Fabricators . | . . . Repair Stations 2 | . 2 . Recycling Units . | . . . Scanalyzers . | . . . Garrison Access . | . . . Terminal Hacks 7 | . 3 4 Record 5 | . 1 4 Dispatch Records 1 | . 1 . Maintenance Status 1 | . 1 . Fabricator Hacks . | . . . Repair Station Hacks 1 | . 1 . Scan Component 1 | . 1 . Recycling Unit Hacks . | . . . Scanalyzer . | . . . Garrison Access Hacks . | . . . Unauthorized Hacks . | . . . Terminals . | . . . Fabricators . | . . . Repair Stations . | . . . Recycling Units . | . . . Scanalyzers . | . . . Garrison Access . | . . . Data Cores Recovered . | . . . Used . | . . . Hacking Detections 2 | . 2 . Full Trace Events . | . . . Feedback Events . | . . . Feedback Blocked . | . . . Robot Schematics Acquired . | . . . Robots Built . | . . . Authchips . | . . . Time . | . . . Total Robot Build Rating . | . . . Part Schematics Acquired . | . . . Parts Built . | . . . Authchips . | . . . Time . | . . . Total Part Build Rating . | . . . Parts Repaired . | . . . Time . | . . . Parts Recycled . | . . . Recycled Matter . | . . . Retrieved Matter . | . . . Retrieved Components . | . . . Parts Scanalyzed . | . . . Part Schematics Acquired . | . . . Parts Damaged . | . . . Bothacking | -11 -10 -10 ------------ Run | Yrd Mat Sub Used RIF Installer . | . . . Robots Hacked . | . . . Non-combat . | . . . Combat . | . . . Robot Hacks Applied . | . . . Relay Couplers Released . | . . . Fabnet Peak Effective % . | . . . Robots Rewired . | . . . Allies Hacked . | . . . Hacks Repelled . | . . . Allies | -11 -10 -10 -------- Run | Yrd Mat Sub Total Allies . | . . . Largest Group . | . . . Highest-Rated Group . | . . . Highest-Rated Ally . | . . . Total Orders . | . . . Ally Attacks . | . . . Total Damage . | . . . Kills . | . . . Allies Corrupted . | . . . Allies Melted . | . . . Intel | -11 -10 -10 ------- Run | Yrd Mat Sub Active Infowar (turns) 1530 | . 312 1218 Sensors 1530 | . 312 1218 Robot Analysis Total . | . . . Derelict Logs Recovered . | . . . Drone Launches . | . . . Drone Recoveries . | . . . Exploration | -11 -10 -10 ------------- Run | Yrd Mat Sub Turns Passed 1725 | 87 418 1220 Spaces Moved 1188 | 67 264 857 Core 20 | 20 . . Treads . | . . . Legs 1168 | 47 264 857 Wheels . | . . . Hover . | . . . Flight . | . . . Fastest Speed 50 | 50 120 120 Average Speed 121 | 99 120 123 Slowest Speed 190 | 120 120 190 Overloaded Moves . | . . . Propulsion Burnouts . | . . . Robots Hopped . | . . . Potential Cave-ins 13 | . . 13 Cave-ins Triggered 2 | . . 2 Exploration Rate (%) 25 | 4 44 29 Regions Visited 2 Branch Regions 1 Pre-discovered Areas . | . . . Known Exits Taken . | . . . Unknown Exits Taken 2 | 1 1 . Scrap Searched . | . . . Spaces Dug 16 | . . 16 Terrain Destroyed 53 | . 34 19 Melee . | . . . Projectile 19 | . . 19 AOE 34 | . 34 . Terrain Rammed . | . . . Walls Destroyed . | . . . Machines Disabled . | . . . Actions | -11 -10 -10 --------- Run | Yrd Mat Sub Total 1378 | 87 313 978 Wait 60 | 4 4 52 Move 1185 | 66 263 856 Hop . | . . . Pick Up 21 | 10 8 3 Fast Attach 8 | . 1 7 Attach 11 | 6 3 2 Detach 1 | . . 1 Swap 2 | 1 1 . Drop 14 | . 2 12 Fire 52 | . 10 42 Melee 24 | . 21 3 Ram . | . . . Kick . | . . . Crush . | . . . Escape Stasis . | . . . Rewire . | . . . Trap . | . . . Miscellaneous . | . . . Route ------- -11/Scrapyard -10/Materials -10/Subcaves (discovered 2 exits: [*Mat x2]) History --------- Turn | Location | Event 16 | -11/Scrapyard | Discovered new exit (range 15) 88 | -11/Scrapyard | Entered Materials 306 | -10/Materials | Build established: Mutant 496 | -10/Materials | Discovered new exit (range 10) 506 | -10/Materials | Entered Subcaves 507 | -10/Subcaves | Shifting Twisted Machinery released Barrage Gun 507 | -10/Subcaves | Approached by a straggling Scientist 638 | -10/Subcaves | Shifting Twisted Machinery released Sub. Optics 725 | -10/Subcaves | Ambushed by swarm of Subdwellers 781 | -10/Subcaves | Visited Clippyterm 788 | -10/Subcaves | Learned Factory fabricator intel 788 | -10/Subcaves | Learned Research security intel 871 | -10/Subcaves | Shifting Twisted Machinery released Sub. Power Source 1130 | -10/Subcaves | Shifting Twisted Machinery released Mak. Light Armor Plating 1522 | -10/Subcaves | Discovered new exit (range 15) 1567 | -10/Subcaves | Discovered new exit (range 8) 1707 | -10/Subcaves | Crushed by falling debris 1707 | -10/Subcaves | Core integrity fell below 50% 1712 | -10/Subcaves | Ambushed by Subdweller buried in earth 1725 | -10/Subcaves | Core integrity fell below 20% 1726 | -10/Subcaves | Crushed by falling debris 1726 | -10/Subcaves | Smashed by cave-in Last Messages --------------- here" 01613_ 0F-MM0(u) deconstructs Twisted Machinery. FE-RND(c): "I think it's somewhere northwest of here" 01632_ 0F-MM0(u) deconstructs Twisted Machinery. FE-RND(c): "I think it's somewhere northwest of here" 01703_ The unstable cave ceiling collapses. 01703_ FE-RND(c) crushed by falling debris. 01703_ FE-RND(c) destroyed. 01707_ The unstable cave ceiling collapses. 01707_ Crushed by falling debris. 01707_ Lgt. Nuclear Core destroyed. 01707_ System corrupted by crushing effect (+2). 01713_ W5-VZ3(R): "HIDIE!" 01718_ The unstable cave ceiling collapses. 01720_ Aluminum Leg destroyed. 01726_ The unstable cave ceiling collapses. 01726_ Crushed by falling debris. Map ----- +----------------------------------------------------+ | ?????????????????????????????????????????????????? | | ?????????????????????????????????????????????????? | | ?????????????????????????????????????????????????? | | ?????????????????????????????????????????????????? | | ?????????????????????????????????????????????????? | | ?????????????????????????????????????????????????? | | ?????????????????????????????????????????????????? | | ?????????????????????????????????????????????????? | | ?????????????????????????????????????????????????? | | ?????????????????????????????????????????????????? | | ?????????????????????????????????????????????????? | | ?????????????????????????????????????????????????? | | ?????????????????????????????????????????????????? | | ?????????????????????????????????????????????????? | | ?????????????????????????????????????????????????? | | ?????????????????????????????????????????????????? | | ?????????????????????????????????????????????????? | | ????????????????????????????##???????????????????? | | ???????????????????????????? ##??????????????????? | | ??????????????????????????? ##?????????????????? | | ??????????????????????????? #?????????????????? | | ??????????????????????????# #?????????????????? | | ??????????????????????#### #??????????????????? | | ??????????????????????#""" #???????????????????? | | ??????????????????????# " #????????????????????? | | ???????????????????????#;@##?????????????????##### | | ???????????????????????## ##????????????????#"""" | | ????????????????????????##R#####?????????????#""X" | | ?????????????????????????### #####???????????#" | | ???????????????????????????###? ?##????????##### # | | ????????????????????????????#####?##??????## ## # | | ????????????????????????????????## ##????## | | ?????????????????????????????????## ##??## | | ??????????????????????????????????##"#### ### | | ???????????????????????????????????## ### | | ???????????????????????????????????## | | ???????????????????????????????????# | | ???????????????????????????????????# | | ???????????????????????????????????# | | ???????????????????????????????????# | | ???????????????????????????????##### [ | | ??????????????????????????????## ## | | ??????????????????????????????# ## | | ??????????????????????????????# ###### | | ??????????????????????????????## #????# | | ???????????????????????????????## #????# ## | | ????????????#####????#####??????## ##????# ## | | ??????????### #???## #??????#" ##????# # | | ###???????# #???# ##??????## ##?### | | # #######?## ""#???# ######???##= ### | +----------------------------------------------------+ Best States ------------- Heat Dissipation 25 Energy Generation 14 Energy Capacity 250 Matter Stores 300 Matter Capacity 300 Sight Range 16 Robot Scan Range 14 Terrain Scan Density 10 Armor Coverage 100 Evasion (%) 55 Item Schematics ----------------- None Robot Schematics ------------------ None Fabricated ------------ Nothing Repaired ---------- Nothing Alien Tech Used ----------------- None Achievements -------------- None Challenges ------------ None Game ------ Seed MagneticOpticalGreatsword Manual? 0 Play Time 00:28:06 Cumulative 38.0 hours Start 2025.09.01 @ 18:29:55 End 2025.09.01 @ 18:56:35 Sessions 1 Manual Loads 0 Difficulty Rogue Special Mode None Game No. 36 Rogue 36 Adventurer 0 Explorer 0 Win Type - Total 0 Types 0/0/0/0/0/0/0/0/0/0 Lore% 16 Gallery% 28 Achievement% 28 Wizard Run 0 Options --------- Layout 1 ASCII 0 Keyboard 0 Movement Numpad Keybinds 0 Fullscreen 1 Font 24/Smallcaps Map View 50x35 Zoom Use 0% Tactical HUD 1 Map Filters NONE Filters NONE Steam 1 RUN: a432bf78-3a1c-4472-83d5-6561430dd193